bitfinex-derivatives/quotes_SOLF0:USTF0_20250419
["timestamp","ask_amount","ask_price","bid_price","bid_amount"]
[1745076011833,8.80709941,139.69,139.64,8.80709941]
[1745076012037,4.45221377,139.68,139.64,8.80709941]
[1745076012240,4.45221377,139.67,139.64,8.80709941]
[1745076012446,8.80709941,139.69,139.64,8.80709941]
[1745076012639,4.45280921,139.68,139.64,8.80709941]
[1745076012841,8.80709941,139.69,139.64,8.80709941]
[1745076012842,4.45280921,139.67,139.64,8.80709941]
[1745076013041,8.80709941,139.69,139.64,8.80709941]
[1745076013241,4.45280921,139.68,139.64,8.80709941]
[1745076013441,4.45280921,139.67,139.64,8.80709941]
[1745076013643,8.80709941,139.69,139.64,8.80709941]
[1745076013942,4.45338226,139.68,139.64,8.80709941]
[1745076014137,4.45338226,139.67,139.64,8.80709941]
[1745076014334,8.80709941,139.69,139.64,8.80709941]
[1745076014543,4.45378647,139.68,139.64,8.80709941]
[1745076014742,4.45378647,139.67,139.64,8.80709941]
[1745076014945,8.80709941,139.7,139.64,8.80709941]
[1745076015245,4.45376729,139.69,139.64,8.80709941]
[1745076015444,4.45376729,139.68,139.64,8.80709941]
[1745076015745,8.80709941,139.7,139.64,8.80709941]
[1745076015948,4.45414705,139.69,139.64,8.80709941]
[1745076016246,4.45414705,139.68,139.64,8.80709941]
[1745076016449,8.80709941,139.7,139.64,8.80709941]
[1745076016644,4.45455612,139.69,139.64,8.80709941]
[1745076016845,4.45455612,139.68,139.64,8.80709941]
[1745076017143,8.80709941,139.7,139.64,8.80709941]
[1745076017339,4.45455848,139.69,139.64,8.80709941]
[1745076017548,4.45455848,139.68,139.64,8.80709941]
[1745076017746,8.80709941,139.7,139.64,8.80709941]
[1745076018048,4.45457338,139.69,139.64,8.80709941]
[1745076018249,4.45457338,139.68,139.64,8.80709941]
[1745076018554,4.45457775,139.67,139.64,8.80709941]
[1745076018847,8.80709941,139.7,139.64,8.80709941]
[1745076019049,4.45457783,139.69,139.64,8.80709941]
[1745076019348,4.45457783,139.68,139.64,8.80709941]
[1745076019548,8.80709941,139.7,139.64,8.80709941]
[1745076019749,4.45468457,139.69,139.64,8.80709941]
[1745076019946,4.45468457,139.68,139.64,8.80709941]
[1745076020246,8.80709941,139.7,139.64,8.80709941]
[1745076020440,4.45494312,139.69,139.64,8.80709941]
[1745076020638,4.45494312,139.68,139.64,8.80709941]
[1745076020839,8.80709941,139.7,139.64,8.80709941]
[1745076021047,4.45479469,139.69,139.64,8.80709941]
[1745076021244,4.45479469,139.68,139.64,8.80709941]
[1745076021445,8.80709941,139.71,139.66,8.80709941]
[1745076021645,4.45482777,139.7,139.67,25.78]
[1745076021842,4.45482777,139.69,139.67,25.78]
[1745076022045,8.80709941,139.73,139.67,25.78]
[1745076022247,4.45482748,139.72,139.67,25.78]
[1745076022442,4.45482748,139.71,139.67,25.78]
[1745076022647,4.45497003,139.7,139.67,25.78]
[1745076022946,8.80709941,139.73,139.67,25.78]
[1745076023145,4.45496643,139.72,139.68,8.80709941]
[1745076023351,4.45496643,139.71,139.68,8.80709941]
[1745076023651,5.6994,139.76,139.7,8.80709941]
[1745076023951,4.45491796,139.75,139.7,8.80709941]
[1745076024249,4.45491796,139.74,139.7,8.80709941]
[1745076024548,4.4543707,139.73,139.7,8.80709941]
[1745076024750,4.45437214,139.72,139.71,25.78]
[1745076024950,14.50649941,139.76,139.71,25.78]
[1745076025152,4.45436155,139.75,139.71,25.78]
[1745076025352,4.45436155,139.74,139.71,25.78]
[1745076025551,4.45436155,139.73,139.72,8.80709941]
[1745076025855,1.43081985,139.78,139.72,8.80709941]
[1745076026152,4.45380182,139.77,139.74,8.80709941]
[1745076026346,4.45380182,139.76,139.74,8.80709941]
[1745076026544,1.43081985,139.78,139.74,8.80709941]
[1745076026749,4.45210186,139.77,139.74,8.80709941]
[1745076027048,4.45210186,139.76,139.74,8.80709941]
[1745076027246,1.43081985,139.78,139.74,8.80709941]
[1745076027453,4.45030896,139.77,139.74,8.80709941]
[1745076027655,4.45030896,139.76,139.74,8.80709941]
[1745076027849,1.43081985,139.78,139.74,8.80709941]
[1745076028051,4.45030621,139.77,139.74,8.80709941]
[1745076028249,4.45030621,139.76,139.74,8.80709941]
[1745076028450,1.43081985,139.78,139.74,8.80709941]
[1745076028651,4.44864642,139.77,139.74,8.80709941]
[1745076028855,4.44864642,139.76,139.74,8.80709941]
[1745076029152,1.43081985,139.78,139.74,8.80709941]
[1745076029357,4.44864916,139.77,139.74,8.80709941]
[1745076029557,1.43081985,139.78,139.74,8.80709941]
[1745076029852,4.49335975,139.77,139.74,8.80709941]
[1745076030057,0.04621749,139.77,139.74,8.85305728]
[1745076032155,8.8533169,139.77,139.74,0.04595787]
[1745076038062,0.04621749,139.77,139.74,0.04595787]
[1745076039063,0.04621749,139.77,139.74,8.85305728]
[1745076039564,0.04621749,139.77,139.75,25.56]
[1745076043764,0.04621749,139.77,139.76,8.80709941]
[1745076045773,8.80709941,139.81,139.76,8.80709941]
[1745076047071,8.80709941,139.81,139.77,0.04991434]
[1745076055777,8.80709941,139.79,139.77,0.04991434]
[1745076060178,32.7118,139.84,139.77,0.04991434]
[1745076060481,8.80709941,139.81,139.77,0.04991434]
[1745076062382,4.44434902,139.8,139.77,0.04991434]
[1745076062581,8.80709941,139.81,139.77,0.04991434]
[1745076063282,4.44639261,139.8,139.77,0.04991434]
[1745076063481,8.80709941,139.81,139.77,0.04991434]
[1745076063682,4.44641394,139.8,139.77,0.04991434]
[1745076063882,8.80709941,139.81,139.77,0.04991434]
[1745076064184,4.44641349,139.8,139.77,0.04991434]
[1745076064384,8.80709941,139.81,139.77,0.04991434]
[1745076064584,4.44878734,139.8,139.77,0.04991434]
[1745076064783,8.80709941,139.81,139.77,0.04991434]
[1745076064984,4.44877911,139.8,139.77,0.04991434]
[1745076065185,25.56,139.84,139.77,0.04991434]
[1745076065384,8.80709941,139.81,139.77,0.04991434]
[1745076065584,4.45134783,139.8,139.77,0.04991434]
[1745076065884,8.80709941,139.81,139.77,0.04991434]
[1745076066082,4.45134913,139.8,139.77,0.04991434]
[1745076066282,8.80709941,139.81,139.77,0.04991434]
[1745076066482,4.45445699,139.8,139.77,0.04991434]
[1745076066681,8.80709941,139.81,139.77,0.04991434]
[1745076066874,4.45445702,139.8,139.77,0.04991434]
[1745076067074,8.80709941,139.81,139.77,0.04991434]
[1745076067279,4.4544536,139.8,139.77,0.04991434]
[1745076067480,4.4544536,139.79,139.77,0.04991434]
[1745076067677,8.80709941,139.81,139.77,0.04991434]
[1745076067882,4.45711167,139.8,139.77,0.04991434]
[1745076068082,4.45711167,139.79,139.77,0.04991434]
[1745076068284,8.80709941,139.81,139.77,0.04991434]
[1745076068485,4.4594558,139.8,139.77,0.04991434]
[1745076068685,4.4594558,139.79,139.77,0.04991434]
[1745076068886,8.80709941,139.81,139.77,0.04991434]
[1745076069082,4.45945629,139.8,139.77,0.04991434]
[1745076069383,4.45945629,139.79,139.77,0.04991434]
[1745076069579,0.05337494,139.8,139.78,25.36]
[1745076069785,4.46093671,139.79,139.78,25.36]
[1745076073187,0.05337494,139.8,139.78,34.16709941]
[1745076073387,3.8669,139.85,139.78,34.16709941]
[1745076073687,8.80709941,139.84,139.78,34.16709941]
[1745076074386,1.8532,139.85,139.8,8.80709941]
[1745076074688,1.8532,139.85,139.81,25.36]
[1745076075787,10.67619941,139.86,139.81,25.36]
[1745076077990,8.80709941,139.84,139.81,25.36]
[1745076079790,8.80709941,139.82,139.8,0.05275113]
[1745076084997,8.80709941,139.82,139.81,7.1531]
[1745076086804,10.77249941,139.84,139.8,0.05275113]
[1745076086991,8.80709941,139.84,139.8,0.05275113]
[1745076087295,8.80709941,139.84,139.81,25.36]
[1745076087701,8.80709941,139.84,139.83,7.1521]
[1745076098711,8.80709941,139.84,139.82,7.1525]
[1745076099010,8.80709941,139.83,139.82,7.1525]
[1745076099805,8.80709941,139.83,139.81,25.36]
[1745076100111,8.80709941,139.83,139.8,0.05275113]
[1745076100410,8.80709941,139.81,139.8,0.05275113]
[1745076103417,8.80709941,139.83,139.8,0.05275113]
[1745076104214,3.9324,139.85,139.8,0.05275113]
[1745076104513,8.80709941,139.85,139.81,25.24]
[1745076107818,8.80709941,139.85,139.81,34.04709941]
[1745076108913,25.24,139.9,139.83,8.80709941]
[1745076109217,34.04709941,139.9,139.83,8.80709941]
[1745076109510,34.04709941,139.9,139.89,7.149]
[1745076109915,8.80709941,139.9,139.89,7.149]
[1745076110115,29.195,139.92,139.84,25.24]
[1745076110417,8.80709941,139.89,139.84,25.24]
[1745076110715,8.80709941,139.89,139.88,7.20098151]
[1745076110915,8.80709941,139.89,139.88,7.1495]
[1745076112815,8.80709941,139.89,139.87,7.19876877]
[1745076114819,8.80709941,139.89,139.87,0.04886877]
[1745076120120,15.95639941,139.89,139.87,0.04886877]
[1745076121022,7.1495,139.88,139.84,25.24]
[1745076121327,8.80709941,139.85,139.81,25.22]
[1745076121822,8.80709941,139.85,139.84,7.1516]
[1745076122925,34.3582,139.89,139.86,7.1505]
[1745076122926,8.80709941,139.87,139.86,7.1505]
[1745076127529,25.22,139.89,139.87,7.15]
[1745076127730,8.80709941,139.88,139.87,7.15]
[1745076130332,8.80709941,139.88,139.85,0.05155931]
[1745076134640,15.95659941,139.88,139.85,0.05155931]
[1745076135942,8.80709941,139.86,139.85,0.05155931]
[1745076136842,0.0530924,139.88,139.85,0.05155931]
[1745076138045,0.0530924,139.88,139.87,7.15]
[1745076141045,1.9571,139.92,139.91,7.148]
[1745076141246,1.8785,139.96,139.91,7.148]
[1745076141442,7.1468,139.94,139.91,7.148]
[1745076141746,7.1468,139.94,139.92,7.1474]
[1745076142148,8.80709941,139.93,139.9,25.14]
[1745076142348,8.80709941,139.91,139.9,32.2885]
[1745076142748,8.80709941,139.91,139.9,32.3359064]
[1745076144752,8.80709941,139.91,139.9,7.1959064]
[1745076150255,7.1467,139.94,139.9,0.0474064]
[1745076150454,8.80709941,139.91,139.9,0.0474064]
[1745076151659,7.1486,139.9,139.87,25.14]
[1745076151854,8.80709941,139.88,139.86,25.14]
[1745076152760,25.14,139.95,139.86,25.14]
[1745076152959,8.80709941,139.89,139.86,25.1893601]
[1745076153360,8.80709941,139.89,139.86,25.14]
[1745076153959,8.80709941,139.89,139.86,25.19054705]
[1745076155762,7.1471,139.93,139.86,25.19054705]
[1745076155960,8.80709941,139.9,139.86,25.19054705]
[1745076156159,8.80709941,139.9,139.86,25.14]
[1745076156556,7.1471,139.93,139.87,0.05386963]
[1745076156761,8.80709941,139.9,139.87,0.05386963]
[1745076158963,8.85443405,139.9,139.87,0.05386963]
[1745076159764,8.80709941,139.88,139.87,0.05386963]
[1745076165067,0.04733464,139.9,139.87,0.05386963]
[1745076165365,8.80709941,139.89,139.87,0.05386963]
[1745076166067,10.80319941,139.89,139.87,0.05386963]
[1745076175771,8.80709941,139.89,139.87,0.05386963]
[1745076181674,8.85443405,139.9,139.87,0.05386963]
[1745076186885,3.7469,139.98,139.89,8.80709941]
[1745076187180,15.95329941,139.95,139.89,8.80709941]
[1745076187381,8.80709941,139.95,139.89,8.80709941]
[1745076187773,8.80709941,139.93,139.89,8.80709941]
[1745076188383,8.80709941,139.93,139.9,0.0516006]
[1745076188586,8.80709941,139.93,139.91,25.12]
[1745076194288,7.1457,139.96,139.91,25.12]
[1745076194487,8.80709941,139.93,139.91,25.12]
[1745076195184,25.12,140.06,139.92,8.80709941]
[1745076195386,8.80709941,139.97,139.96,7.1454]
[1745076195590,8.80709941,139.97,139.92,25.12]
[1745076195890,8.80709941,139.94,139.92,25.12]
[1745076196086,8.80709941,139.94,139.93,7.147]
[1745076196396,8.80709941,139.96,139.92,25.12]
[1745076196688,8.80709941,139.96,139.95,7.1459]
[1745076197287,8.80709941,139.97,139.92,25.17061925]
[1745076197689,8.80709941,139.97,139.96,7.1454]
[1745076198786,14.278,140.09,139.96,15.94709941]
[1745076199092,385.37647861,140.27,140.04,8.80709941]
[1745076199288,22.37647861,140.27,140.22,7.1322]
[1745076199489,317.18627935,140.23,140.22,41.05929941]
[1745076199690,18.2955239,140.23,140.22,7.1322]
[1745076199992,18.2955239,140.23,140.21,8.80709941]
[1745076200192,21.3326,140.65,140.22,26.24]
[1745076200392,375.91186903,140.37,140.23,565.74]
[1745076200694,369.60186903,140.37,140.23,565.74]
[1745076200887,355.29186903,140.37,140.36,8.80709941]
[1745076201193,322.92463769,140.37,140.36,13.61694804]
[1745076201394,28.66,140.47,140.41,7.122]
[1745076201583,35.64,140.48,140.38,13.61694804]
[1745076201889,71.28,140.49,140.39,8.90172432]
[1745076202087,35.64,140.48,140.4,8.90172432]
[1745076202292,35.64,140.47,140.41,8.90170918]
[1745076202587,13.61694804,140.42,140.27,13.61694804]
[1745076202788,13.61694804,140.45,140.32,13.61694804]
[1745076202994,71.28,140.44,140.32,13.61694804]
[1745076203192,71.28,140.45,140.31,31.34]
[1745076203401,31.3,140.44,140.31,31.34]
[1745076203692,31.3,140.44,140.24,21.80373289]
[1745076203693,71.28,140.38,140.24,31.3]
[1745076203893,21.80373289,140.36,140.25,4.2962275]
[1745076204090,21.80373289,140.36,140.26,4.2962275]
[1745076204293,31.3,140.35,140.27,4.2962275]
[1745076204493,0.04876194,140.32,140.29,0.05407905]
[1745076204689,31.3,140.35,140.3,4.2962275]
[1745076204690,11.06867701,140.35,140.3,4.2962275]
[1745076204994,31.3,140.34,140.31,4.2962275]
[1745076205196,31.3,140.34,140.32,12.97759671]
[1745076205493,102.68,140.34,140.3,96.59985563]
[1745076205794,21.80373289,140.31,140.26,208.84153547]
[1745076205994,31.3,140.3,140.26,208.84153547]
[1745076206292,71.28,140.27,140.08,31.3]
[1745076206493,28.93673289,140.21,140.08,31.3]
[1745076206686,31.3,140.2,140.08,31.3]
[1745076207086,91.73021208,140.2,140.16,0.04616307]
[1745076207387,47.00217203,140.17,140.0,31.3]
[1745076207592,31.3,140.16,140.06,21.80373289]
[1745076207792,31.3,140.15,140.09,12.0571877]
[1745076208588,7.1342,140.18,140.09,12.0571877]
[1745076208785,78.30217203,140.17,140.11,0.04891504]
[1745076209188,31.3,140.21,140.11,35.60164652]
[1745076209591,31.3,140.21,140.11,35.55273148]
[1745076209792,47.00217203,140.16,140.1,12.0571877]
[1745076209996,66.85273148,140.15,140.1,12.0571877]
[1745076210200,47.00217203,140.11,140.1,12.0571877]
[1745076210493,47.00217203,140.12,140.1,12.0571877]
[1745076210689,47.00217203,140.12,140.11,0.04846137]
[1745076210895,564.94,140.17,140.11,0.04846137]
[1745076211097,389.43054551,140.17,140.11,0.04846137]
[1745076211397,389.43054551,140.17,140.07,368.89766886]
[1745076211796,7.1352,140.16,140.13,0.05417455]
[1745076212497,7.136,140.15,140.14,241.47851404]
[1745076213093,396.56574551,140.17,140.14,241.47851404]
[1745076213395,38.4352,140.17,140.14,241.47851404]
[1745076213601,38.4336,140.2,140.14,241.47851404]
[1745076214299,7.1338,140.19,140.14,241.47851404]
[1745076214506,31.3,140.2,140.16,0.05156213]
[1745076214997,565.0,140.24,140.16,0.05156213]
[1745076215296,31.3,140.23,140.16,0.05156213]
[1745076216203,7.1327,140.21,140.16,0.05156213]
[1745076216406,31.3,140.23,140.16,0.05156213]
[1745076216700,0.0533305,140.21,140.16,0.05156213]
[1745076216894,7.1861305,140.21,140.16,0.05156213]
[1745076217097,7.1861305,140.21,140.17,79.74969474]
[1745076217595,494.82716045,140.24,140.17,79.74969474]
[1745076217897,494.82716045,140.24,140.18,12.07390641]
[1745076218099,7.1329,140.21,140.18,12.07390641]
[1745076218901,46.6,140.24,140.19,12.07390641]
[1745076219102,31.3,140.26,140.19,12.07390641]
[1745076219497,7.1326,140.22,140.19,12.07390641]
[1745076219899,7.1326,140.22,140.2,12.07390641]
[1745076220201,7.1326,140.22,140.21,0.04919722]
[1745076220397,66.85273148,140.23,140.2,2.98180363]
[1745076220602,66.85273148,140.23,140.17,67.67578833]
[1745076220895,31.3,140.23,140.17,67.67578833]
[1745076221093,35.55273148,140.2,140.15,186.16304725]
[1745076221299,31.3,140.19,140.15,184.10784725]
[1745076221706,31.3,140.19,140.16,0.04763412]
[1745076221907,31.3,140.18,140.16,0.04763412]
[1745076222103,31.3,140.21,140.16,0.04763412]
[1745076222606,7.1347,140.17,140.16,0.04763412]
[1745076223008,31.3,140.21,140.16,0.04763412]
[1745076223304,420.38790109,140.23,140.16,0.04763412]
[1745076223505,293.45756731,140.23,140.16,0.04763412]
[1745076224106,7.134,140.19,140.16,0.04763412]
[1745076224405,293.45756731,140.23,140.16,0.04763412]
[1745076225003,280.28710779,140.23,140.16,0.04763412]
[1745076225609,7.1347,140.17,140.16,0.04763412]
[1745076225810,7.1347,140.17,140.16,202.56593728]
[1745076226208,238.37043704,140.23,140.16,202.56593728]
[1745076226711,7.1347,140.17,140.16,202.56593728]
[1745076227512,7.1347,140.17,140.16,98.82149568]
[1745076227914,66.85273148,140.2,140.16,98.82149568]
[1745076228714,7.1347,140.17,140.16,98.82149568]
[1745076229015,7.1347,140.17,140.16,0.04763412]
[1745076229713,60.44665042,140.2,140.16,0.04763412]
[1745076229913,24.89391894,140.2,140.16,0.04763412]
[1745076230214,7.1347,140.17,140.16,0.04763412]
[1745076230713,24.89391894,140.2,140.16,0.04763412]
[1745076232716,7.1347,140.17,140.16,0.04763412]
[1745076233716,7.1338,140.19,140.16,0.04763412]
[1745076234014,24.89391894,140.2,140.16,0.04763412]
[1745076234215,7.1347,140.17,140.16,0.04763412]
[1745076236218,7.1338,140.19,140.16,0.04763412]
[1745076236518,24.89391894,140.2,140.16,0.04763412]
[1745076237315,32.02731894,140.2,140.16,0.04763412]
[1745076237919,32.02731894,140.2,140.16,7.18273412]
[1745076238218,24.89391894,140.2,140.16,0.04763412]
[1745076238718,7.1347,140.17,140.16,0.04763412]
[1745076238920,24.89391894,140.2,140.17,39.03041094]
[1745076239420,7.1342,140.18,140.17,39.03041094]
[1745076240919,7.1342,140.18,140.17,57.99243616]
[1745076241916,7.1342,140.18,140.17,51.52706947]
[1745076242121,21.88540013,140.19,140.13,137.99706]
[1745076243022,7.1361,140.15,140.13,137.99706]
[1745076243523,21.88540013,140.19,140.15,0.04878086]
[1745076243725,7.1355,140.16,140.15,0.04878086]
[1745076244121,7.1355,140.16,140.1,241.47851404]
[1745076244625,7.1355,140.16,140.14,0.04739093]
[1745076244924,7.1357,140.15,140.14,0.04739093]
[1745076245319,7.1355,140.16,140.14,0.04739093]
[1745076245521,21.88540013,140.19,140.14,0.04739093]
[1745076245721,7.1357,140.15,140.14,0.04739093]
[1745076245920,52.70540013,140.16,140.07,595.82]
[1745076246124,21.88540013,140.13,140.03,30.82]
[1745076246325,7.1386,140.1,140.03,30.82]
[1745076246524,30.82,140.12,140.03,30.82]
[1745076246928,7.1391,140.09,140.05,7.1407]
[1745076247430,30.82,140.08,139.98,565.08]
[1745076247732,52.70540013,140.07,139.97,30.82]
[1745076247929,52.70540013,140.07,139.95,36.5347]
[1745076248125,7.1422,140.03,139.96,3.00571324]
[1745076248325,52.70540013,140.07,139.95,36.5347]
[1745076248832,7.19423006,140.02,139.97,7.1447]
[1745076249226,0.05153006,140.02,139.97,7.1447]
[1745076249432,0.05153006,140.02,139.95,1.8649]
[1745076249732,0.05153006,140.02,139.92,30.82]
[1745076250031,0.05153006,140.02,139.89,58.45000013]
[1745076250231,30.82,140.03,139.9,3.01720544]
[1745076250427,7.144,139.99,139.93,7.1466]
[1745076250633,0.04824357,139.97,139.93,7.1466]
[1745076251935,0.04824357,139.97,139.9,7.1483]
[1745076252126,7.1461,139.95,139.85,21.88540013]
[1745076252329,30.84,139.94,139.89,7.1485]
[1745076252530,30.84,139.94,139.85,21.88540013]
[1745076253125,0.04940546,139.91,139.89,35.6635918]
[1745076253326,0.04940546,139.91,139.82,30.84]
[1745076253534,0.04940546,139.91,139.84,35.6635918]
[1745076253728,30.84,139.94,139.84,35.6635918]
[1745076253934,30.84,139.94,139.88,7.1491]
[1745076254135,30.84,139.94,139.83,35.6635918]
[1745076254335,0.05498157,139.89,139.83,35.6635918]
[1745076254536,0.05498157,139.89,139.88,7.1495]
[1745076255742,30.84,139.94,139.9,7.1483]
[1745076256137,30.84,139.94,139.89,7.1488]
[1745076256336,30.84,139.94,139.83,35.6635918]
[1745076256836,30.84,139.94,139.82,92.84]
[1745076256837,30.84,139.94,139.9,7.1481]
[1745076257237,36.81,139.94,139.9,7.1481]
[1745076257838,5.97,139.94,139.91,0.04642944]
[1745076258034,5.97,139.94,139.92,30.86]
[1745076258240,30.86,140.04,139.92,66.5235918]
[1745076258440,30.86,140.07,139.95,35.6635918]
[1745076258643,30.86,140.07,139.96,30.86]
[1745076259040,7.1404,140.06,140.0,0.05181202]
[1745076259241,32.8534,140.1,140.0,0.05181202]
[1745076259535,32.8534,140.1,140.01,35.6635918]
[1745076260242,30.86,140.1,140.04,0.04678269]
[1745076260742,37.9984,140.1,140.04,0.04678269]
[1745076261042,30.86,140.1,140.04,0.04678269]
[1745076261339,30.86,140.1,140.05,7.1408]
[1745076261545,30.86,140.1,140.04,0.04678269]
[1745076261935,565.68,140.12,140.04,0.04678269]
[1745076262442,7.1381,140.11,140.05,7.1407]
[1745076263044,7.1381,140.11,140.06,7.1401]
[1745076263446,7.1381,140.11,140.07,0.04523139]
[1745076263745,572.8173,140.12,140.07,0.04523139]
[1745076264145,565.68,140.12,140.07,0.04523139]
[1745076265047,7.1381,140.11,140.07,0.04523139]
[1745076265646,572.8173,140.12,140.07,0.04523139]
[1745076265942,565.68,140.12,140.07,0.04523139]
[1745076266245,572.8175,140.12,140.07,0.04523139]
[1745076266950,565.68,140.12,140.07,0.04523139]
[1745076267342,565.68,140.12,140.07,7.18483139]
[1745076267944,565.68,140.12,140.07,0.04523139]
[1745076268842,7.1381,140.11,140.07,0.04523139]
[1745076269147,565.68,140.12,140.07,0.04523139]
[1745076270048,7.1381,140.11,140.07,0.04523139]
[1745076270248,565.68,140.12,140.07,0.04523139]
[1745076271861,7.1383,140.1,140.07,0.04523139]
[1745076274450,565.68,140.12,140.07,0.04523139]
[1745076275050,572.8174,140.12,140.07,7.18473139]
[1745076275252,572.8174,140.12,140.07,0.04523139]
[1745076275950,7.1378,140.11,140.07,0.04523139]
[1745076276852,565.68,140.12,140.07,0.04523139]
[1745076277350,7.1393,140.08,140.07,0.04523139]
[1745076277646,565.68,140.12,140.07,0.04523139]
[1745076277951,7.1393,140.09,140.07,0.04523139]
[1745076279151,29.94,140.22,140.08,21.90220869]
[1745076279351,29.94,140.22,140.11,21.90220869]
[1745076279655,7.1345,140.18,140.12,7.137]
[1745076279854,29.94,140.22,140.12,7.137]
[1745076280153,7.1345,140.18,140.15,0.04582662]
[1745076280449,37.0745,140.18,140.15,0.04582662]
[1745076281555,29.94,140.22,140.15,0.04582662]
[1745076282046,29.94,140.22,140.11,51.84220869]
[1745076282251,7.1335,140.2,140.15,7.1354]
[1745076282452,29.94,140.22,140.17,0.04687494]
[1745076283058,29.94,140.22,140.11,51.84220869]
[1745076284155,7.133,140.21,140.11,51.84220869]
[1745076284455,7.133,140.21,140.16,7.1347]
[1745076284751,29.94,140.22,140.11,51.84220869]
[1745076285054,29.94,140.22,140.18,7.1339]
[1745076285255,29.94,140.22,140.15,29.92]
[1745076285448,29.94,140.22,140.16,1.9311]
[1745076285651,595.36,140.25,140.2,7.1332]
[1745076285955,602.4907,140.25,140.2,7.1332]
[1745076286354,23.91030869,140.3,140.16,1.9311]
[1745076286555,7.1304,140.26,140.17,23.85100869]
[1745076286755,7.1304,140.26,140.21,0.05306228]
[1745076286957,7.1304,140.26,140.21,7.18536228]
[1745076287157,29.92,140.29,140.21,0.05306228]
[1745076287460,29.92,140.29,140.21,7.18536228]
[1745076287659,7.1302,140.26,140.21,7.18536228]
[1745076288361,29.92,140.29,140.21,0.05306228]
[1745076289062,7.1295,140.28,140.22,7.1317]
[1745076289559,7.1297,140.27,140.22,7.1317]
[1745076289961,7.1297,140.27,140.24,0.04862635]
[1745076290961,7.1302,140.26,140.24,0.04862635]
[1745076291463,7.13,140.27,140.24,0.04862635]
[1745076291662,617.06220869,140.32,140.24,0.04862635]
[1745076292170,1.9933,140.34,140.24,0.04862635]
[1745076292171,29.92,140.38,140.24,0.04862635]
[1745076292362,21.90220869,140.36,140.24,29.96862635]
[1745076292662,7.127,140.33,140.25,3.9135]
[1745076292861,21.90220869,140.36,140.26,1.9052]
[1745076293057,377.2391,140.47,140.26,1.9052]
[1745076293256,21.90220869,140.39,140.28,0.05478046]
[1745076293457,21.90220869,140.39,140.28,29.41478046]
[1745076293662,21.90220869,140.39,140.28,29.36]
[1745076294059,21.90220869,140.39,140.32,0.05323291]
[1745076294365,29.36,140.38,140.32,0.05323291]
[1745076294658,21.90220869,140.36,140.32,0.05323291]
[1745076294861,7.1289,140.29,140.22,361.0]
[1745076295055,7.1289,140.29,140.2,29.36]
[1745076295461,7.1289,140.29,140.22,7.1321]
[1745076295657,7.1289,140.29,140.2,29.36]
[1745076295866,29.36,140.3,140.2,51.26220869]
[1745076296060,29.36,140.3,140.23,7.1317]
[1745076296261,0.05257152,140.27,140.23,7.1317]
[1745076296958,0.05257152,140.27,140.2,51.26220869]
[1745076297163,1.8895,140.34,140.2,51.26220869]
[1745076297164,7.1277,140.31,140.2,51.26220869]
[1745076297364,1.8895,140.34,140.24,0.04705469]
[1745076297662,30.7650089,140.35,140.25,29.34]
[1745076297863,30.7650089,140.35,140.25,31.2856]
[1745076298362,30.7650089,140.35,140.26,1.8741]
[1745076298555,30.7650089,140.35,140.29,0.05067583]
[1745076298760,29.34,140.38,140.29,29.39067583]
[1745076298963,36.4643,140.38,140.32,7.127]
[1745076299164,51.24220869,140.42,140.29,51.29288452]
[1745076299364,51.24220869,140.42,140.29,51.24220869]
[1745076299666,51.24220869,140.42,140.34,0.04514948]
[1745076299966,7.1239,140.39,140.34,0.04514948]
[1745076300368,7.1236,140.39,140.34,3.95344948]
[1745076300967,29.34,140.42,140.34,3.95344948]
[1745076301466,51.24220869,140.45,140.34,3.95344948]
[1745076301666,1.9223,140.47,140.35,3.00260327]
[1745076301867,1.9223,140.47,140.34,3.95344948]
[1745076302167,7.1223,140.42,140.37,7.1242]
[1745076302368,29.34,140.44,140.39,0.04882839]
[1745076302667,7.123,140.4,140.39,0.04882839]
[1745076304168,7.123,140.4,140.36,1.9201]
[1745076304169,7.1245,140.37,140.36,1.9201]
[1745076304367,7.1245,140.37,140.34,3.9083]
[1745076304969,7.1252,140.36,140.31,29.34]
[1745076305366,51.24220869,140.4,140.3,2.0148]
[1745076305667,21.90220869,140.33,140.19,361.0]
[1745076305869,29.32,140.32,140.22,1.9929]
[1745076306066,7.1299,140.27,140.22,1.9929]